bitfinex/quotes_BTCUSD_20240629
["timestamp","ask_amount","ask_price","bid_price","bid_amount"]
[1719621809554,2.966163,60775.0,60774.0,0.3616]
[1719621809982,2.97836797,60775.0,60774.0,0.3616]
[1719621810227,3.00196931,60775.0,60774.0,0.3616]
[1719621810671,3.16430302,60775.0,60774.0,0.3616]
[1719621810904,0.01220497,60772.0,60768.0,0.1643]
[1719621811119,0.0939,60769.0,60767.0,0.1643]
[1719621811343,1.2664,60768.0,60767.0,0.1643]
[1719621811555,1.35363,60768.0,60767.0,0.1643]
[1719621811765,1.37723134,60768.0,60767.0,0.1643]
[1719621811987,1.37688374,60768.0,60767.0,0.1643]
[1719621812202,1.73238774,60768.0,60767.0,0.1643]
[1719621812429,0.803368,60768.0,60767.0,0.36]
[1719621812661,0.75249283,60768.0,60767.0,0.36779503]
[1719621814351,0.75249283,60768.0,60767.0,0.36771557]
[1719621814565,0.54735883,60768.0,60767.0,0.36771557]
[1719621814781,0.54735883,60768.0,60767.0,0.36871557]
[1719621815001,0.37907679,60768.0,60767.0,0.36871557]
[1719621815229,0.39019222,60768.0,60767.0,0.36871557]
[1719621815480,0.34356138,60768.0,60767.0,0.38871557]
[1719621815689,0.1,60768.0,60767.0,0.38871557]
[1719621815917,0.1939,60768.0,60767.0,0.38871557]
[1719621816139,0.0939,60768.0,60767.0,0.38871557]
[1719621819217,0.13059878,60772.0,60771.0,0.17209503]
[1719621819435,0.22449878,60772.0,60771.0,0.36779503]
[1719621819653,0.37684978,60772.0,60771.0,0.36779503]
[1719621820796,0.38184978,60772.0,60771.0,0.36779503]
[1719621821016,0.38784978,60772.0,60771.0,0.36779503]
[1719621821456,0.357251,60772.0,60771.0,0.36779503]
[1719621821683,0.352251,60772.0,60771.0,0.36779503]
[1719621821905,0.346251,60772.0,60771.0,0.36979503]
[1719621822364,0.32653,60772.0,60771.0,0.37179503]
[1719621822555,0.326757,60772.0,60771.0,0.37179503]
[1719621824158,0.326757,60772.0,60771.0,0.364]
[1719621824377,0.326757,60772.0,60771.0,0.37179503]
[1719621824378,0.57034557,60772.0,60771.0,0.37179503]
[1719621825033,0.63635257,60772.0,60771.0,0.37179503]
[1719621825269,0.63635257,60772.0,60771.0,0.364]
[1719621825504,0.65720965,60772.0,60771.0,0.364]
[1719621826396,0.41362108,60772.0,60771.0,0.364]
[1719621826624,0.65720965,60772.0,60771.0,0.364]
[1719621827060,0.58758265,60772.0,60771.0,0.364]
[1719621827781,0.34399408,60772.0,60771.0,0.364]
[1719621828012,0.323137,60772.0,60771.0,0.364]
[1719621828496,0.56673106,60772.0,60771.0,0.364]
[1719621828946,0.323137,60772.0,60771.0,0.364]
[1719621829171,0.312696,60772.0,60771.0,0.364]
[1719621829412,0.34443406,60772.0,60771.0,0.364]
[1719621829630,0.62952406,60772.0,60771.0,0.364]
[1719621830066,0.38593,60772.0,60771.0,0.37179503]
[1719621830520,0.62952406,60772.0,60771.0,0.364]
[1719621830963,0.65038114,60772.0,60771.0,0.364]
[1719621831186,0.38593,60772.0,60771.0,0.37179503]
[1719621831422,0.40742018,60772.0,60771.0,0.37179503]
[1719621831684,0.40742018,60772.0,60771.0,0.364]
[1719621831909,0.65101585,60772.0,60771.0,0.37179503]
[1719621833023,0.65101585,60772.0,60771.0,0.364]
[1719621833512,0.65101585,60772.0,60771.0,0.37179503]
[1719621833980,0.40742018,60772.0,60771.0,0.37179503]
[1719621834412,0.62952318,60772.0,60771.0,0.37179503]
[1719621834625,0.65062466,60772.0,60771.0,0.37179503]
[1719621835043,0.40703148,60772.0,60771.0,0.37179503]
[1719621836617,0.40703148,60772.0,60771.0,0.364]
[1719621836835,0.74222248,60772.0,60771.0,0.364]
[1719621837275,0.67632248,60772.0,60771.0,0.364]
[1719621837708,0.67621496,60772.0,60771.0,0.364]
[1719621838144,0.655221,60772.0,60771.0,0.364]
[1719621838389,0.67621496,60772.0,60771.0,0.364]
[1719621838608,0.47621496,60772.0,60771.0,0.364]
[1719621839027,0.33068196,60772.0,60771.0,0.364]
[1719621839474,0.309688,60772.0,60771.0,0.364]
[1719621840363,0.10084,60772.0,60771.0,0.364]
[1719621840629,0.09474,60772.0,60771.0,0.39179503]
[1719621842589,0.09474,60772.0,60771.0,0.364]
[1719621845030,0.09474,60772.0,60771.0,0.39179503]
[1719621845483,0.09474,60772.0,60771.0,0.364]
[1719621845727,0.09474,60772.0,60771.0,0.39179503]
[1719621846482,0.09474,60772.0,60771.0,0.37179503]
[1719621847376,0.09474,60772.0,60771.0,0.39179503]
[1719621847852,0.09474,60772.0,60771.0,0.37179503]
[1719621848471,0.09474,60772.0,60771.0,0.39179503]
[1719621848942,0.09474,60772.0,60771.0,0.37179503]
[1719621849128,0.09474,60772.0,60771.0,0.38179503]
[1719621849341,0.09474,60772.0,60771.0,0.37179503]
[1719621850067,0.09474,60772.0,60771.0,0.39179503]
[1719621850496,0.09474,60772.0,60771.0,0.37179503]
[1719621850938,0.09474,60772.0,60771.0,0.39179503]
[1719621850939,0.00084,60772.0,60771.0,0.39179503]
[1719621851182,0.09474,60772.0,60771.0,0.39179503]
[1719621852150,0.00084,60772.0,60771.0,0.364]
[1719621852376,0.09474,60772.0,60771.0,0.364]
[1719621852603,0.09474,60772.0,60771.0,0.39179503]
[1719621856998,0.09474,60772.0,60771.0,0.37179503]
[1719621857672,0.07799129,60772.0,60771.0,0.37179503]
[1719621857894,0.1,60774.0,60771.0,0.39179503]
[1719621858117,0.12248349,60775.0,60774.0,0.1744]
[1719621858339,0.1939,60775.0,60774.0,0.18219503]
[1719621859223,0.43938249,60775.0,60774.0,0.18219503]
[1719621859455,0.43947225,60775.0,60774.0,0.18219503]
[1719621859963,0.1959,60775.0,60774.0,0.18219503]
[1719621860192,0.43947225,60775.0,60774.0,0.18219503]
[1719621861736,0.43747225,60775.0,60774.0,0.18027783]
[1719621861943,0.43747225,60775.0,60774.0,0.18127783]
[1719621862696,0.43753862,60775.0,60774.0,0.18127783]
[1719621862918,0.43937862,60775.0,60774.0,0.18127783]
[1719621863143,0.19574,60775.0,60774.0,0.18127783]
[1719621863370,0.43837861,60775.0,60774.0,0.18127783]
[1719621863583,0.43837861,60775.0,60774.0,0.18327783]
[1719621864964,0.19474,60775.0,60774.0,0.18327783]
[1719621865228,0.43837861,60775.0,60774.0,0.18327783]
[1719621865960,0.43838139,60775.0,60774.0,0.18327783]
[1719621868297,0.19474,60775.0,60774.0,0.18327783]
[1719621868874,0.43838875,60775.0,60774.0,0.18327783]
[1719621869112,0.43838813,60775.0,60774.0,0.18327783]
[1719621869322,0.19474,60775.0,60774.0,0.18327783]
[1719621871669,0.08099274,60779.0,60778.0,0.00779503]
[1719621871900,0.17489274,60779.0,60778.0,0.00779503]
[1719621872115,1.38301174,60779.0,60776.0,0.00779503]
[1719621872295,1.120006,60778.0,60776.0,0.00779503]
[1719621872547,0.11521379,60777.0,60776.0,0.00779503]
[1719621872973,1.04264479,60777.0,60776.0,0.00779503]
[1719621873826,1.14464479,60777.0,60776.0,0.00779503]
[1719621874045,1.14564479,60777.0,60776.0,0.00779503]
[1719621875479,1.02387179,60777.0,60776.0,0.00779503]
[1719621875739,1.002558,60777.0,60776.0,0.00779503]
[1719621875945,1.0240252,60777.0,60776.0,0.00779503]
[1719621876915,0.8131142,60777.0,60776.0,0.00779503]
[1719621878999,0.791647,60777.0,60776.0,0.00779503]
[1719621879226,0.81279892,60777.0,60776.0,0.00779503]
[1719621880610,0.99816792,60777.0,60776.0,0.00779503]
[1719621881951,0.95695892,60777.0,60776.0,0.00779503]
[1719621885274,0.935807,60777.0,60776.0,0.00779503]
[1719621885428,0.95693759,60777.0,60776.0,0.00779503]
[1719621886464,0.95693759,60777.0,60776.0,0.00774732]
[1719621886885,0.95693759,60777.0,60774.0,0.1724828]
[1719621887131,0.838505,60776.0,60774.0,0.1724828]
[1719621887335,0.1,60776.0,60774.0,0.1724828]
[1719621888472,0.0959,60777.0,60774.0,0.1724828]
[1719621888703,0.738505,60776.0,60774.0,0.1724828]
[1719621888934,0.1,60775.0,60774.0,0.1724828]
[1719621889158,0.12115218,60775.0,60774.0,0.1724828]
[1719621890010,0.02115218,60775.0,60774.0,0.18123012]
[1719621890435,0.1,60776.0,60774.0,0.1734828]
[1719621890644,0.0939,60777.0,60774.0,0.1734828]
[1719621890925,0.737917,60776.0,60774.0,0.1734828]
[1719621891134,0.1,60775.0,60774.0,0.1744828]
[1719621891575,0.1,60775.0,60774.0,0.1734828]
[1719621892017,0.1,60775.0,60774.0,0.1754828]
[1719621892494,0.0939,60777.0,60774.0,0.1754828]
[1719621892710,0.737917,60776.0,60774.0,0.1754828]
[1719621892938,0.737917,60776.0,60775.0,0.00774732]
[1719621893157,0.837917,60776.0,60775.0,0.00774732]
[1719621893389,0.85901852,60776.0,60775.0,0.00774732]
[1719621894278,0.72629652,60776.0,60775.0,0.00774732]
[1719621895216,0.72626877,60776.0,60775.0,0.00774732]
[1719621896158,1.36553377,60776.0,60775.0,0.00874732]
[1719621896376,0.97953377,60776.0,60775.0,0.00874732]
[1719621898172,0.95846,60776.0,60775.0,0.00874732]
[1719621898433,0.97919938,60776.0,60775.0,0.00874732]
[1719621899505,0.97919938,60776.0,60775.0,0.001]
[1719621899741,0.87129538,60776.0,60775.0,0.001]
[1719621899961,0.825865,60776.0,60775.0,0.001]
[1719621900185,0.825865,60776.0,60775.0,0.00874732]
[1719621900409,0.579506,60776.0,60775.0,0.001]
[1719621900630,0.579506,60776.0,60775.0,0.00874732]
[1719621901090,0.57934242,60776.0,60775.0,0.00874732]
[1719621901944,0.57934242,60776.0,60775.0,0.02874732]
[1719621902851,0.28172842,60776.0,60775.0,0.02874732]
[1719621903088,0.28172842,60776.0,60775.0,0.22194732]
[1719621903304,0.09983642,60776.0,60775.0,0.41264732]
[1719621903571,0.385551,60776.0,60775.0,0.41264732]
[1719621903792,0.385551,60776.0,60775.0,0.39264732]
[1719621904460,0.34611,60776.0,60775.0,0.39264732]
[1719621904902,0.34611,60776.0,60775.0,0.3849]
[1719621906009,0.34611,60776.0,60775.0,0.39264732]
[1719621906680,0.345445,60776.0,60775.0,0.39264732]
[1719621907416,0.345445,60776.0,60775.0,0.17944732]
[1719621908080,0.345445,60776.0,60775.0,0.1717]
[1719621908301,0.345445,60776.0,60775.0,0.17944732]
[1719621909421,0.305214,60776.0,60775.0,0.17944732]
[1719621910152,0.00084,60777.0,60776.0,0.41164732]
[1719621910369,0.00084,60777.0,60776.0,0.5739863]
[1719621911515,0.09574,60777.0,60776.0,0.5759863]
[1719621911751,0.19474,60777.0,60776.0,0.54623898]
[1719621911965,0.09474,60777.0,60776.0,0.54623898]
[1719621912198,0.19574,60777.0,60776.0,0.54823898]
[1719621912628,0.19674,60777.0,60776.0,0.54823898]
[1719621913299,0.19574,60777.0,60776.0,0.54823898]
[1719621913789,0.19674,60777.0,60776.0,0.55123898]
[1719621914391,0.10284,60777.0,60776.0,0.55123898]
[1719621914624,0.09674,60777.0,60776.0,0.55123898]
[1719621916701,0.09674,60777.0,60776.0,0.5789863]
[1719621918524,0.00284,60777.0,60776.0,0.5789863]
[1719621919821,0.00284,60777.0,60776.0,0.55123898]
[1719621920048,0.00284,60777.0,60776.0,0.7789863]
[1719621920302,0.00284,60777.0,60776.0,0.5789863]
[1719621921180,0.00284,60777.0,60776.0,0.5786193]
[1719621921409,0.00284,60777.0,60776.0,0.5785593]
[1719621921715,0.00284,60777.0,60776.0,0.5784393]
[1719621921943,0.00284,60777.0,60776.0,0.7784393]
[1719621923096,0.00284,60777.0,60776.0,0.5784393]
[1719621923782,0.00284,60777.0,60776.0,0.7784393]
[1719621924031,0.00284,60777.0,60776.0,0.5784393]
[1719621924687,0.00284,60777.0,60776.0,0.7784393]
[1719621924913,0.00284,60777.0,60776.0,0.5784393]
[1719621925136,0.00284,60777.0,60776.0,0.7784393]
[1719621926368,0.00284,60777.0,60776.0,1.1751393]
[1719621926590,0.00284,60777.0,60776.0,1.2081493]
[1719621927017,0.00284,60777.0,60776.0,0.98040198]
[1719621927242,0.00284,60777.0,60776.0,1.2081493]
[1719621927682,0.00184,60777.0,60776.0,1.2051493]
[1719621927938,0.00084,60777.0,60776.0,1.2031493]
[1719621928151,0.00284,60777.0,60776.0,1.2111493]
[1719621928840,0.00284,60777.0,60776.0,1.2120733]
[1719621931699,0.00284,60777.0,60776.0,1.22032889]
[1719621935191,0.002005,60777.0,60776.0,1.22032889]
[1719621937820,0.002005,60777.0,60776.0,0.80032889]
[1719621938047,0.388505,60777.0,60776.0,0.18726589]
[1719621938289,0.388505,60777.0,60776.0,0.17951857]
[1719621938742,0.388505,60777.0,60776.0,0.18726589]
[1719621938952,0.387505,60777.0,60776.0,0.18526589]
[1719621939192,0.386505,60777.0,60776.0,0.17926589]
[1719621939417,0.386505,60777.0,60776.0,0.19626589]
[1719621939418,0.387505,60777.0,60776.0,0.19626589]
[1719621939623,0.387505,60777.0,60776.0,0.18426589]
[1719621940062,0.387505,60777.0,60776.0,0.18326589]
[1719621942011,0.387505,60777.0,60776.0,0.18826589]
[1719621942450,0.387505,60777.0,60776.0,0.18326589]
[1719621942663,0.386505,60777.0,60776.0,0.17926589]
[1719621942889,0.386505,60777.0,60776.0,0.18426589]
[1719621943117,0.386505,60777.0,60776.0,0.18826589]
[1719621943776,0.386505,60777.0,60776.0,0.18051857]
[1719621943988,1.521981,60777.0,60776.0,0.01817959]
[1719621944203,1.7623391,60777.0,60776.0,0.009924]
[1719621944944,1.78140377,60777.0,60776.0,0.009924]
[1719621945366,1.78195799,60777.0,60776.0,0.009924]
[1719621945580,1.62967589,60777.0,60776.0,0.009924]
[1719621946022,1.15670889,60777.0,60776.0,0.01767132]
[1719621946253,1.25060889,60777.0,60776.0,0.009924]
[1719621948711,1.718957,60777.0,60776.0,0.009924]
[1719621948932,1.73879273,60777.0,60776.0,0.00988151]
[1719621949170,1.718957,60777.0,60776.0,0.00988151]
[1719621949423,1.73879288,60777.0,60776.0,0.00988151]
[1719621951734,1.718957,60777.0,60776.0,0.00988151]
[1719621951956,1.73881836,60777.0,60776.0,0.00988151]
[1719621953813,1.75107104,60777.0,60776.0,0.00988151]
[1719621954037,1.45942162,60777.0,60776.0,0.00988151]
[1719621955099,1.45931404,60777.0,60776.0,0.00988151]
[1719621955303,1.44706136,60777.0,60776.0,0.00988151]
[1719621955995,1.45931404,60777.0,60776.0,0.00988151]
[1719621957362,1.44706136,60777.0,60776.0,0.00988151]
[1719621958195,1.44726974,60777.0,60776.0,0.00488151]
[1719621958414,1.45426974,60777.0,60776.0,0.00188151]
[1719621958657,1.44230758,60777.0,60776.0,0.00288151]
[1719621958871,1.45526974,60777.0,60776.0,0.00188151]
[1719621959297,1.46226974,60777.0,60776.0,0.00288151]
[1719621960594,1.46310974,60777.0,60776.0,0.00288151]
[1719621960808,1.44314758,60777.0,60776.0,0.00288151]
[1719621961027,1.46308642,60777.0,60776.0,0.00288151]
[1719621961460,1.4603391,60777.0,60776.0,0.00088151]
[1719621961894,1.4723391,60777.0,60776.0,0.00188151]
[1719621962751,1.46008642,60777.0,60776.0,0.00188151]
[1719621962960,1.71515587,60777.0,60776.0,0.00188151]
[1719621963171,1.70815587,60777.0,60776.0,0.00088151]
[1719621963371,1.4653391,60777.0,60776.0,0.00088151]
[1719621963784,1.46065168,60777.0,60776.0,0.00088151]
[1719621964643,1.46765168,60777.0,60776.0,0.00188151]
[1719621964855,1.46065168,60777.0,60776.0,0.00088151]
[1719621965276,1.47265168,60777.0,60776.0,0.00188151]
[1719621965913,1.46765168,60777.0,60776.0,0.00188151]
[1719621966332,1.47265168,60777.0,60776.0,0.00188151]
[1719621966559,1.5450768,60777.0,60776.0,0.00188151]
[1719621966788,1.53282412,60777.0,60776.0,0.00188151]
[1719621967002,1.53297166,60777.0,60776.0,0.00188151]
[1719621967419,1.47279922,60777.0,60776.0,0.00181574]
[1719621968420,1.71549823,60777.0,60776.0,0.00181574]
[1719621968651,1.70324555,60777.0,60776.0,0.00181574]
[1719621968859,1.71549823,60777.0,60776.0,0.00181574]
[1719621970195,1.69509927,60777.0,60776.0,0.00181574]
[1719621970422,1.4729726,60777.0,60776.0,0.00181574]
[1719621970639,1.45240026,60777.0,60776.0,0.00181574]
[1719621970847,1.4729726,60777.0,60776.0,0.00181574]
[1719621971068,1.4729726,60777.0,60771.0,0.000924]
[1719621971069,0.01225268,60772.0,60771.0,0.000924]
[1719621971294,2.81898966,60772.0,60771.0,0.000924]
[1719621971548,1.483175,60772.0,60771.0,0.000924]
[1719621971781,1.49542768,60772.0,60771.0,0.000924]
[1719621972211,1.51600002,60772.0,60771.0,0.000924]
[1719621972415,1.53044449,60772.0,60771.0,0.001924]
[1719621972623,1.53119181,60772.0,60771.0,0.002924]
[1719621972836,1.54344449,60772.0,60771.0,0.002924]
[1719621973044,1.52944449,60772.0,60771.0,0.001924]
[1719621973252,1.50419181,60772.0,60771.0,0.001924]
[1719621973461,1.495175,60772.0,60771.0,0.001924]
[1719621973684,2.04607432,60772.0,60771.0,0.001924]
[1719621973902,2.058327,60772.0,60771.0,0.001924]
[1719621974146,2.047327,60772.0,60771.0,0.000924]
[1719621975236,2.057327,60772.0,60771.0,0.000924]
[1719621975495,2.066327,60772.0,60771.0,0.001924]
[1719621976807,2.06665221,60772.0,60771.0,0.001924]
[1719621977263,2.14489802,60772.0,60771.0,0.001924]
[1719621978174,2.06665221,60772.0,60771.0,0.001924]
[1719621978802,2.02255353,60772.0,60771.0,0.001924]
[1719621979002,2.03480621,60772.0,60771.0,0.001924]
[1719621979233,2.02255353,60772.0,60771.0,0.001924]
[1719621979457,2.03480621,60772.0,60771.0,0.001924]
[1719621979926,2.03479882,60772.0,60771.0,0.001924]
[1719621980158,2.02254614,60772.0,60771.0,0.001924]
[1719621980398,2.42771068,60772.0,60771.0,0.001924]
[1719621980611,2.43996336,60772.0,60771.0,0.001924]
[1719621981442,2.19713831,60772.0,60771.0,0.001924]
[1719621982752,2.19714543,60772.0,60771.0,0.001924]
[1719621983019,2.17585239,60772.0,60771.0,0.001924]
[1719621983237,2.19714539,60772.0,60771.0,0.001924]
[1719621983890,2.19714539,60772.0,60771.0,0.00187484]
[1719621984782,2.22499656,60772.0,60771.0,0.00187484]
[1719621986094,2.06266285,60772.0,60771.0,0.00187484]
[1719621986315,2.06266616,60772.0,60771.0,0.00187484]
[1719621989490,2.06258966,60772.0,60771.0,0.00187484]
[1719621989936,2.04136985,60772.0,60771.0,0.00187484]
[1719621990166,2.06258966,60772.0,60771.0,0.00187484]
[1719621990380,2.21267069,60772.0,60771.0,0.00187484]
[1719621990641,2.22492337,60772.0,60771.0,0.00187484]
[1719621992662,2.22576337,60772.0,60771.0,0.00187484]
[1719621995961,2.20454356,60772.0,60771.0,0.00187484]
[1719621996176,3.35747896,60772.0,60771.0,0.00187484]
[1719621996393,3.51599096,60772.0,60771.0,0.00187484]
[1719621997323,3.51599096,60772.0,60771.0,0.00181212]
[1719621999087,3.49532485,60772.0,60771.0,0.00181212]
[1719621999325,3.51583039,60772.0,60771.0,0.00181212]
[1719621999574,2.25543564,60772.0,60771.0,0.00181212]
[1719621999856,1.63407576,60772.0,60771.0,0.00181212]
[1719622000320,1.62182308,60772.0,60771.0,0.00181212]
[1719622000563,1.63407576,60772.0,60771.0,0.00181212]
[1719622001233,1.63399546,60772.0,60771.0,0.00181212]
[1719622002395,1.65446631,60772.0,60771.0,0.00181212]
[1719622002819,1.65446631,60772.0,60771.0,0.01008715]
[1719622003259,0.86330863,60772.0,60771.0,0.18108715]
[1719622003493,0.86330863,60772.0,60771.0,0.38258715]
[1719622003709,0.87556131,60772.0,60771.0,0.38258715]
[1719622003922,0.87556131,60772.0,60771.0,0.01008715]
[1719622005560,0.87531427,60772.0,60771.0,0.01008715]
[1719622007188,3.23992802,60772.0,60771.0,0.01008715]
[1719622007405,3.23992802,60772.0,60771.0,0.00181212]
[1719622008616,3.08416527,60772.0,60771.0,0.00181212]
[1719622008850,3.07211197,60772.0,60771.0,0.00181212]
[1719622009073,0.99269897,60772.0,60771.0,0.00181212]
[1719622009300,0.99269862,60772.0,60771.0,0.00181212]
[1719622009531,0.99269862,60772.0,60771.0,0.01008715]
[1719622009767,0.99269862,60772.0,60771.0,0.00181212]
[1719622010290,0.99269862,60772.0,60771.0,0.01008715]
[1719622010517,0.99269862,60772.0,60771.0,0.00181212]
[1719622010734,0.99269862,60772.0,60771.0,0.01008715]
[1719622010951,0.99269862,60772.0,60771.0,0.00181212]
[1719622011164,0.99269862,60772.0,60771.0,0.01008715]
[1719622011385,1.2599718,60772.0,60771.0,0.00181212]
[1719622011838,1.2599718,60772.0,60771.0,0.01008715]
[1719622012057,1.25997556,60772.0,60771.0,0.01008715]
[1719622012557,0.99270238,60772.0,60771.0,0.01008715]
[1719622015380,0.99275691,60772.0,60771.0,0.01008715]
[1719622016037,0.99275691,60772.0,60771.0,0.01004664]
[1719622018068,3.51365891,60772.0,60771.0,0.01004664]
[1719622018520,3.51365355,60772.0,60771.0,0.00177161]
[1719622018995,3.49313505,60772.0,60771.0,0.00177161]
[1719622019456,3.54335441,60772.0,60771.0,0.00177161]
[1719622021097,3.26034441,60772.0,60771.0,0.00177161]
[1719622022340,3.27259709,60772.0,60771.0,0.00177161]
[1719622023047,3.26034441,60772.0,60771.0,0.00177161]
[1719622023279,3.27259709,60772.0,60771.0,0.00177161]
[1719622024021,3.2727527,60772.0,60771.0,0.00177161]
[1719622024471,3.27268222,60772.0,60771.0,0.00177161]
[1719622024913,3.47968222,60772.0,60771.0,0.00177161]
[1719622026092,3.67968222,60772.0,60771.0,0.00177161]
[1719622026233,3.47968222,60772.0,60771.0,0.00177161]
[1719622026661,3.64201593,60772.0,60771.0,0.00177161]
[1719622027079,3.62236978,60772.0,60771.0,0.00177161]
[1719622027280,3.64216339,60772.0,60771.0,0.00177161]
[1719622029460,3.84216339,60772.0,60771.0,0.00177161]
[1719622029701,3.86209039,60772.0,60771.0,0.00177161]
[1719622030363,3.39138532,60772.0,60771.0,0.00177161]
[1719622030590,3.48519323,60772.0,60771.0,0.00177161]
[1719622031116,3.48522378,60772.0,60771.0,0.00177161]
[1719622031561,3.48522378,60772.0,60771.0,0.01006097]
[1719622031805,3.48522378,60772.0,60771.0,0.00177161]
[1719622032025,3.64756276,60772.0,60771.0,0.01006097]
[1719622032223,3.64756276,60772.0,60771.0,0.00828936]
[1719622032460,3.72783069,60772.0,60771.0,0.00828936]
[1719622032672,3.74756244,60772.0,60767.0,0.000924]
[1719622032880,0.0939,60768.0,60767.0,0.000924]
[1719622033120,3.30117,60768.0,60767.0,0.000924]
[1719622033336,2.822094,60768.0,60767.0,0.000924]
[1719622033569,2.497233,60768.0,60767.0,0.000924]
[1719622033800,2.46937472,60768.0,60767.0,0.000924]
[1719622034032,2.39507472,60768.0,60767.0,0.000924]
[1719622034254,1.91536772,60768.0,60767.0,0.208924]
[1719622034558,1.76120372,60768.0,60767.0,0.375424]
[1719622035077,1.76120372,60768.0,60767.0,0.376424]
[1719622035560,1.76120372,60768.0,60767.0,0.375424]
[1719622035782,1.77020372,60768.0,60767.0,0.377424]
[1719622036987,1.77019223,60768.0,60767.0,0.377424]
[1719622037212,1.77019223,60768.0,60767.0,0.3857138]
[1719622040018,1.77008802,60768.0,60767.0,0.3857138]
[1719622043366,1.76975008,60768.0,60767.0,0.3857138]
[1719622043789,1.76985816,60768.0,60767.0,0.3857138]
[1719622044784,1.76985816,60768.0,60767.0,0.1777138]
[1719622044882,2.12710033,60768.0,60767.0,0.0112138]
[1719622045098,1.76985816,60768.0,60767.0,0.0112138]
[1719622045332,2.13219714,60768.0,60765.0,1.97796547]
[1719622045593,0.2019,60766.0,60765.0,1.30866547]
[1719622045823,3.57150898,60766.0,60765.0,1.30866547]
[1719622046059,3.43190198,60766.0,60765.0,1.30866547]
[1719622046315,3.45141067,60766.0,60765.0,1.30866547]
[1719622048141,3.52043367,60766.0,60765.0,1.30966547]
[1719622048364,3.68276738,60766.0,60765.0,1.30866547]
[1719622048611,3.67176738,60766.0,60765.0,0.68726547]
[1719622048837,3.66976738,60766.0,60765.0,0.68826547]
[1719622049063,3.65776738,60766.0,60765.0,0.68320327]
[1719622049314,3.63825869,60766.0,60765.0,0.67336591]
[1719622049538,3.66986191,60766.0,60765.0,0.62646591]
[1719622050478,3.86986191,60766.0,60765.0,0.62646591]
[1719622050698,3.66986191,60766.0,60765.0,0.62646591]
[1719622050957,3.68386191,60766.0,60765.0,0.62646591]
[1719622052094,3.88386191,60766.0,60765.0,0.62646591]
[1719622052576,3.96717054,60766.0,60765.0,0.62646591]
[1719622052799,3.76717054,60766.0,60765.0,0.62646591]
[1719622054612,3.75317054,60766.0,60765.0,0.62646591]
[1719622054867,3.67136358,60766.0,60765.0,0.62546591]
[1719622055357,3.88236358,60766.0,60765.0,0.62646591]
[1719622055812,4.06325869,60766.0,60765.0,0.62646591]
[1719622056044,4.15251122,60766.0,60765.0,0.62646591]
[1719622056328,4.06325869,60766.0,60765.0,0.62546591]
[1719622056547,4.15551121,60766.0,60765.0,0.62638991]
[1719622056762,4.16651121,60766.0,60765.0,0.62738991]
[1719622057686,4.15251121,60766.0,60765.0,0.62738991]
[1719622057897,4.15551121,60766.0,60765.0,0.62638991]
[1719622058573,4.16651121,60766.0,60765.0,0.62738991]
[1719622058816,3.6503635,60766.0,60765.0,0.62638991]
[1719622059039,3.67530681,60766.0,60765.0,0.62738991]
[1719622059261,3.79658379,60766.0,60765.0,0.62738991]
[1719622059476,3.79658379,60766.0,60765.0,0.62638991]
[1719622059950,3.80758379,60766.0,60765.0,0.62738991]
[1719622060193,3.79358379,60766.0,60765.0,0.62738991]
[1719622061098,3.69865112,60766.0,60765.0,0.62738991]
[1719622061311,3.68765112,60766.0,60765.0,0.62638991]
[1719622061537,3.71265112,60766.0,60765.0,0.62738991]
[1719622061759,3.71265112,60766.0,60765.0,0.62638991]
[1719622061978,3.67938796,60766.0,60765.0,0.62638991]
[1719622062209,3.89877683,60766.0,60765.0,0.62638991]
[1719622062454,3.69877683,60766.0,60765.0,0.62638991]
[1719622062675,3.69877683,60766.0,60765.0,0.62738991]
[1719622062676,3.91277683,60766.0,60765.0,0.62738991]
[1719622062900,3.92377683,60766.0,60765.0,0.62738991]
[1719622063590,3.96637683,60766.0,60765.0,0.62738991]
[1719622063832,0.2,60758.0,60756.0,0.009218]
[1719622064098,4.42840898,60757.0,60756.0,0.009218]
[1719622064315,4.42840898,60757.0,60746.0,0.009218]
[1719622064316,0.2,60752.0,60746.0,0.009218]
[1719622064544,0.0939,60747.0,60746.0,0.009218]
[1719622064774,2.757362,60747.0,60746.0,0.009218]
[1719622065000,1.93298,60747.0,60746.0,0.009218]
[1719622065260,0.914522,60747.0,60746.0,0.243818]
[1719622065483,1.02788233,60747.0,60746.0,0.243818]
[1719622065708,0.93398233,60747.0,60746.0,0.25048917]
[1719622065942,1.17290446,60747.0,60746.0,0.25048917]
[1719622066179,1.18390446,60747.0,60746.0,0.25148917]
[1719622066419,1.19790446,60747.0,60746.0,0.25148917]
[1719622068508,1.17844413,60747.0,60746.0,0.25148917]
[1719622068751,1.19773302,60747.0,60746.0,0.25148917]
[1719622068972,1.19773348,60747.0,60746.0,0.25148917]
[1719622071551,1.17844413,60747.0,60746.0,0.25148917]
[1719622071794,1.19732832,60747.0,60746.0,0.25148917]
[1719622072241,0.38280632,60747.0,60746.0,0.25148917]
[1719622072459,2.83196719,60747.0,60746.0,0.25148917]
[1719622073151,2.83196719,60747.0,60746.0,0.244818]
[1719622073853,2.86478956,60747.0,60746.0,0.244818]
[1719622074103,2.86478956,60747.0,60746.0,0.010218]
[1719622074328,2.67955356,60747.0,60746.0,0.010218]
[1719622074567,2.6186984,60747.0,60746.0,0.010218]
[1719622074800,2.61810631,60747.0,60746.0,0.010218]
[1719622075744,2.82304529,60747.0,60738.0,0.172]
[1719622075958,0.0939,60741.0,60738.0,0.172]
[1719622076197,3.46350371,60741.0,60738.0,0.172]
[1719622076424,3.80630978,60741.0,60738.0,0.172]
[1719622076644,3.56350371,60741.0,60738.0,0.172]
[1719622077337,3.56950371,60741.0,60738.0,0.172]
[1719622077790,3.58779581,60741.0,60738.0,0.172]
[1719622078011,3.56950371,60741.0,60738.0,0.172]
[1719622078249,3.58879531,60741.0,60738.0,0.172]
[1719622078916,3.75113429,60741.0,60738.0,0.172]
[1719622079153,3.75813429,60741.0,60738.0,0.172]
[1719622079398,3.75813429,60741.0,60735.0,0.172]
[1719622079637,0.0939,60736.0,60735.0,0.172]
[1719622080320,2.898618,60736.0,60735.0,0.172]
[1719622080561,2.977022,60736.0,60735.0,0.172]
[1719622080790,2.858122,60736.0,60735.0,0.172]
[1719622081023,2.97104273,60736.0,60735.0,0.172]
[1719622081454,3.13337829,60736.0,60735.0,0.172]
[1719622081964,2.97104458,60736.0,60735.0,0.172]
[1719622082408,2.97204458,60736.0,60735.0,0.172]
[1719622082644,2.97204458,60736.0,60735.0,0.173]
[1719622083570,2.9718612,60736.0,60735.0,0.172]